[Event "Titled Tuesday Blitz July 11 Early 2023"]
[White "Bogaudinov, Rushan"]
[Black "Horobetz, Graham"]
[WhiteFideId "4129288"]
[BlackFideId "2047322"]
[WhiteElo "2336"]
[BlackElo "2549"]
[Result "0-1"]
[Round "3"]
[TimeControl "180+2"]
[Date "2023.07.11"]
[WhiteClock "0:00:21"]
[BlackClock "0:00:12"]
[Board "134"]

1. e4 {[%clk 0:02:56]}  c5 {[%clk 0:02:10]} 2. Nf3 {[%clk 0:02:56]}  d6 {[%clk 0:02:09]} 3. d4 {[%clk 0:02:54]}  cxd4 {[%clk 0:02:10]} 4. Nxd4 {[%clk 0:02:55]}  Nf6 {[%clk 0:02:10]} 5. Nc3 {[%clk 0:02:54]}  a6 {[%clk 0:02:11]} 6. a4 {[%clk 0:02:53]}  e5 {[%clk 0:02:11]} 7. Nde2 {[%clk 0:02:49]}  Be7 {[%clk 0:02:10]} 8. h3 {[%clk 0:02:49]}  Be6 {[%clk 0:02:02]} 9. Be3 {[%clk 0:02:39]}  d5 {[%clk 0:01:46]} 10. exd5 {[%clk 0:02:39]}  Nxd5 {[%clk 0:01:47]} 11. Nxd5 {[%clk 0:02:38]}  Qxd5 {[%clk 0:01:47]} 12. Nc3 {[%clk 0:02:35]}  Qc6 {[%clk 0:01:44]} 13. Be2 {[%clk 0:02:24]}  f5 {[%clk 0:01:31]} 14. O-O {[%clk 0:02:17]}  O-O {[%clk 0:01:28]} 15. a5 {[%clk 0:02:16]}  Nd7 {[%clk 0:01:27]} 16. f4 {[%clk 0:02:04]}  e4 {[%clk 0:01:25]} 17. Na4 {[%clk 0:02:00]}  Nc5 {[%clk 0:01:20]} 18. Nb6 {[%clk 0:01:53]}  Rad8 {[%clk 0:01:19]} 19. Qe1 {[%clk 0:01:53]}  Nd7 {[%clk 0:01:12]} 20. c3 {[%clk 0:01:45]}  Nxb6 {[%clk 0:01:07]} 21. axb6 {[%clk 0:01:30]}  Rd7 {[%clk 0:01:01]} 22. Qf2 {[%clk 0:01:30]}  Rfd8 {[%clk 0:00:56]} 23. Rfd1 {[%clk 0:01:28]}  Rxd1+ {[%clk 0:00:46]} 24. Rxd1 {[%clk 0:01:27]}  Rxd1+ {[%clk 0:00:46]} 25. Bxd1 {[%clk 0:01:28]}  Qb5 {[%clk 0:00:45]} 26. Bd4 {[%clk 0:01:23]}  g6 {[%clk 0:00:40]} 27. g4 {[%clk 0:01:21]}  Qd3 {[%clk 0:00:32]} 28. gxf5 {[%clk 0:01:20]}  Qxd1+ {[%clk 0:00:31]} 29. Kh2 {[%clk 0:01:18]}  Bxf5 {[%clk 0:00:30]} 30. Be5 {[%clk 0:01:11]}  Qd3 {[%clk 0:00:18]} 31. h4 {[%clk 0:01:02]}  e3 {[%clk 0:00:14]} 32. Qf3 {[%clk 0:00:57]}  Qc2+ {[%clk 0:00:11]} 33. Kg3 {[%clk 0:00:54]}  Bxh4+ {[%clk 0:00:09]} 34. Kxh4 {[%clk 0:00:53]}  Qf2+ {[%clk 0:00:09]} 35. Qg3 {[%clk 0:00:52]}  Kf7 {[%clk 0:00:05]} 36. Bd4 {[%clk 0:00:50]}  Qxg3+ {[%clk 0:00:05]} 37. Kxg3 {[%clk 0:00:51]}  e2 {[%clk 0:00:05]} 38. Kf2 {[%clk 0:00:51]}  Bd3 {[%clk 0:00:06]} 39. Ke1 {[%clk 0:00:48]}  Ke6 {[%clk 0:00:06]} 40. Kd2 {[%clk 0:00:47]}  Bc4 {[%clk 0:00:06]} 41. Bf2 {[%clk 0:00:42]}  Kf5 {[%clk 0:00:06]} 42. Ke3 {[%clk 0:00:37]}  h5 {[%clk 0:00:06]} 43. Kd4 {[%clk 0:00:33]}  Bb5 {[%clk 0:00:06]} 44. c4 {[%clk 0:00:33]}  Ba4 {[%clk 0:00:04]} 45. Ke3 {[%clk 0:00:30]}  Kg4 {[%clk 0:00:02]} 46. b4 {[%clk 0:00:25]}  Bc6 {[%clk 0:00:02]} 47. Kxe2 {[%clk 0:00:20]}  Kxf4 {[%clk 0:00:02]} 48. Be3+ {[%clk 0:00:19]}  Kg4 {[%clk 0:00:02]} 49. Kd3 {[%clk 0:00:19]}  g5 {[%clk 0:00:03]} 50. Kd4 {[%clk 0:00:19]}  h4 {[%clk 0:00:03]} 51. Ke5 {[%clk 0:00:18]}  Kh5 {[%clk 0:00:03]} 52. Bf2 {[%clk 0:00:16]}  g4 {[%clk 0:00:04]} 53. Kf4 {[%clk 0:00:16]}  g3 {[%clk 0:00:04]} 54. Bxg3 {[%clk 0:00:17]}  hxg3 {[%clk 0:00:05]} 55. Kxg3 {[%clk 0:00:17]}  Kg5 {[%clk 0:00:06]} 56. Kf2 {[%clk 0:00:16]}  Kf5 {[%clk 0:00:06]} 57. Ke3 {[%clk 0:00:17]}  Ke5 {[%clk 0:00:07]} 58. Kd3 {[%clk 0:00:17]}  Bd7 {[%clk 0:00:07]} 59. Kc3 {[%clk 0:00:16]}  Ke4 {[%clk 0:00:08]} 60. Kb3 {[%clk 0:00:14]}  Kd4 {[%clk 0:00:08]} 61. c5 {[%clk 0:00:15]}  Bc6 {[%clk 0:00:08]} 62. Kb2 {[%clk 0:00:14]}  Kc4 {[%clk 0:00:08]} 63. Ka3 {[%clk 0:00:14]}  Kc3 {[%clk 0:00:08]} 64. b5 {[%clk 0:00:13]}  axb5 {[%clk 0:00:09]} 65. Ka2 {[%clk 0:00:13]}  b4 {[%clk 0:00:09]} 66. Ka1 {[%clk 0:00:13]}  Kc2 {[%clk 0:00:09]} 67. Ka2 {[%clk 0:00:13]}  b3+ {[%clk 0:00:09]} 68. Ka3 {[%clk 0:00:14]}  b2 {[%clk 0:00:08]} 69. Kb4 {[%clk 0:00:15]}  b1=Q+ {[%clk 0:00:08]} 70. Kc4 {[%clk 0:00:16]}  Qb3+ {[%clk 0:00:08]} 71. Kd4 {[%clk 0:00:16]}  Qd3+ {[%clk 0:00:08]} 72. Ke5 {[%clk 0:00:16]}  Qe4+ {[%clk 0:00:08]} 73. Kd6 {[%clk 0:00:17]}  Qd5+ {[%clk 0:00:08]} 74. Kc7 {[%clk 0:00:17]}  Qd7+ {[%clk 0:00:08]} 75. Kb8 {[%clk 0:00:17]}  Qe6 {[%clk 0:00:06]} 76. Kc7 {[%clk 0:00:17]}  Qc4 {[%clk 0:00:07]} 77. Kd6 {[%clk 0:00:17]}  Kc3 {[%clk 0:00:07]} 78. Kc7 {[%clk 0:00:16]}  Qxc5 {[%clk 0:00:07]} 79. Kc8 {[%clk 0:00:16]}  Qxb6 {[%clk 0:00:07]} 80. Kb8 {[%clk 0:00:17]}  Qc5 {[%clk 0:00:07]} 81. Kc7 {[%clk 0:00:17]}  b5 {[%clk 0:00:08]} 82. Kb8 {[%clk 0:00:17]}  b4 {[%clk 0:00:08]} 83. Kc7 {[%clk 0:00:18]}  Be4+ {[%clk 0:00:09]} 84. Kd7 {[%clk 0:00:18]}  b3 {[%clk 0:00:09]} 85. Ke6 {[%clk 0:00:19]}  b2 {[%clk 0:00:09]} 86. Kd7 {[%clk 0:00:20]}  b1=Q {[%clk 0:00:09]} 87. Ke6 {[%clk 0:00:20]}  Qbb6+ {[%clk 0:00:10]} 88. Kd7 {[%clk 0:00:20]}  Qcc7+ {[%clk 0:00:11]} 89. Ke8 {[%clk 0:00:21]}  Qbb8# {[%clk 0:00:12]} 0-1


[Site "https://www.chess.com"]

[Event "Titled Tuesday Blitz July 11 Early 2023"]
[White "robertoalejandro10"]
[Black "Fajdetic, Hrvoje"]
[BlackFideId "14501945"]
[WhiteElo "2549"]
[BlackElo "2335"]
[Result "1-0"]
[Round "3"]
[TimeControl "180+2"]
[Date "2023.07.11"]
[WhiteClock "0:00:50"]
[BlackClock "0:00:14"]
[Board "135"]

1. Nf3 {[%clk 0:03:00]}  f5 {[%clk 0:02:59]} 2. d3 {[%clk 0:02:59]}  d6 {[%clk 0:02:57]} 3. e4 {[%clk 0:02:58]}  e5 {[%clk 0:02:57]} 4. Nc3 {[%clk 0:02:45]}  Nf6 {[%clk 0:02:57]} 5. exf5 {[%clk 0:02:43]}  Bxf5 {[%clk 0:02:56]} 6. d4 {[%clk 0:02:44]}  Nc6 {[%clk 0:02:47]} 7. dxe5 {[%clk 0:02:39]}  Nxe5 {[%clk 0:02:37]} 8. Be2 {[%clk 0:02:29]}  Be7 {[%clk 0:02:28]} 9. O-O {[%clk 0:02:29]}  O-O {[%clk 0:02:28]} 10. Bf4 {[%clk 0:02:24]}  Nxf3+ {[%clk 0:02:15]} 11. Bxf3 {[%clk 0:02:23]}  c6 {[%clk 0:02:15]} 12. Re1 {[%clk 0:02:20]}  Re8 {[%clk 0:02:08]} 13. Qd2 {[%clk 0:02:14]}  d5 {[%clk 0:02:01]} 14. Re5 {[%clk 0:02:08]}  Bg6 {[%clk 0:01:57]} 15. Rae1 {[%clk 0:02:03]}  Bd6 {[%clk 0:01:44]} 16. Rxe8+ {[%clk 0:01:51]}  Nxe8 {[%clk 0:01:42]} 17. Bg5 {[%clk 0:01:43]}  Qc7 {[%clk 0:01:36]} 18. h4 {[%clk 0:01:12]}  h6 {[%clk 0:01:30]} 19. h5 {[%clk 0:01:11]}  Bf5 {[%clk 0:01:04]} 20. Bh4 {[%clk 0:01:07]}  Bf4 {[%clk 0:00:57]} 21. Qd1 {[%clk 0:01:06]}  Nf6 {[%clk 0:00:49]} 22. Bxf6 {[%clk 0:01:01]}  gxf6 {[%clk 0:00:50]} 23. Nxd5 {[%clk 0:00:59]}  Qd6 {[%clk 0:00:41]} 24. Ne7+ {[%clk 0:00:56]}  Kf7 {[%clk 0:00:38]} 25. Qxd6 {[%clk 0:00:55]}  Bxd6 {[%clk 0:00:37]} 26. Nxf5 {[%clk 0:00:55]}  Bf8 {[%clk 0:00:33]} 27. Be2 {[%clk 0:00:51]}  b5 {[%clk 0:00:31]} 28. Bf3 {[%clk 0:00:51]}  Rc8 {[%clk 0:00:14]} 29. Nd4 {[%clk 0:00:50]} 1-0


[Site "https://www.chess.com"]

[Event "Titled Tuesday Blitz July 11 Early 2023"]
[White "Przybylski, Wojciech"]
[Black "DeyanKostov"]
[WhiteFideId "1117599"]
[WhiteElo "2548"]
[BlackElo "2330"]
[Result "1-0"]
[Round "3"]
[TimeControl "180+2"]
[Date "2023.07.11"]
[WhiteClock "0:01:02"]
[BlackClock "0:00:16"]
[Board "136"]

1. e4 {[%clk 0:02:59]}  c5 {[%clk 0:02:59]} 2. Nf3 {[%clk 0:02:59]}  d6 {[%clk 0:02:59]} 3. d4 {[%clk 0:02:59]}  Nf6 {[%clk 0:03:00]} 4. Nc3 {[%clk 0:02:58]}  cxd4 {[%clk 0:03:00]} 5. Nxd4 {[%clk 0:02:59]}  Nc6 {[%clk 0:03:00]} 6. Bg5 {[%clk 0:02:57]}  Bd7 {[%clk 0:03:00]} 7. f4 {[%clk 0:02:57]}  Rc8 {[%clk 0:02:59]} 8. Nb3 {[%clk 0:02:51]}  e6 {[%clk 0:02:43]} 9. Qd2 {[%clk 0:02:49]}  Be7 {[%clk 0:02:37]} 10. Be2 {[%clk 0:02:46]}  h6 {[%clk 0:02:36]} 11. Bxf6 {[%clk 0:02:45]}  Bxf6 {[%clk 0:02:32]} 12. Nb5 {[%clk 0:02:43]}  O-O {[%clk 0:02:23]} 13. Nxd6 {[%clk 0:02:37]}  Rc7 {[%clk 0:02:21]} 14. e5 {[%clk 0:02:37]}  Bh4+ {[%clk 0:02:16]} 15. g3 {[%clk 0:02:36]}  Be7 {[%clk 0:02:16]} 16. Rd1 {[%clk 0:02:36]}  Bc8 {[%clk 0:02:05]} 17. O-O {[%clk 0:02:25]}  b6 {[%clk 0:01:57]} 18. Bf3 {[%clk 0:02:22]}  Ba6 {[%clk 0:01:39]} 19. Rfe1 {[%clk 0:02:18]}  Qb8 {[%clk 0:01:30]} 20. Ne4 {[%clk 0:02:12]}  Rd8 {[%clk 0:01:28]} 21. Qg2 {[%clk 0:02:08]}  Nb4 {[%clk 0:01:26]} 22. c3 {[%clk 0:02:07]}  Nd5 {[%clk 0:01:13]} 23. Kh1 {[%clk 0:02:07]}  Rcd7 {[%clk 0:01:12]} 24. Ra1 {[%clk 0:01:42]}  Qc7 {[%clk 0:01:05]} 25. h3 {[%clk 0:01:41]}  Bc4 {[%clk 0:00:55]} 26. Nbd2 {[%clk 0:01:34]}  Ba6 {[%clk 0:00:51]} 27. a3 {[%clk 0:01:32]}  Bb7 {[%clk 0:00:44]} 28. c4 {[%clk 0:01:29]}  Nxf4 {[%clk 0:00:31]} 29. gxf4 {[%clk 0:01:28]}  Rxd2 {[%clk 0:00:30]} 30. Nxd2 {[%clk 0:01:24]}  Rxd2 {[%clk 0:00:30]} 31. Qxd2 {[%clk 0:01:22]}  Bxf3+ {[%clk 0:00:30]} 32. Kh2 {[%clk 0:01:22]}  g5 {[%clk 0:00:28]} 33. Qe3 {[%clk 0:01:14]}  Bb7 {[%clk 0:00:27]} 34. Rac1 {[%clk 0:01:10]}  Kh8 {[%clk 0:00:26]} 35. Rg1 {[%clk 0:01:08]}  gxf4 {[%clk 0:00:25]} 36. Qxf4 {[%clk 0:01:08]}  Bg5 {[%clk 0:00:25]} 37. Rxg5 {[%clk 0:01:07]}  hxg5 {[%clk 0:00:26]} 38. Qxg5 {[%clk 0:01:05]}  Qc5 {[%clk 0:00:16]} 39. Qh6+ {[%clk 0:01:02]} 1-0


[Site "https://www.chess.com"]

[Event "Titled Tuesday Blitz July 11 Early 2023"]
[White "Mattheii"]
[Black "Wernberg, Hugo"]
[BlackFideId "1737511"]
[WhiteElo "2547"]
[BlackElo "2322"]
[Result "1/2-1/2"]
[Round "3"]
[TimeControl "180+2"]
[Date "2023.07.11"]
[WhiteClock "0:00:00"]
[BlackClock "0:00:51"]
[Board "137"]

1. c4 {[%clk 0:03:00]}  e5 {[%clk 0:02:59]} 2. Nc3 {[%clk 0:03:00]}  Nc6 {[%clk 0:02:59]} 3. Nf3 {[%clk 0:03:00]}  Nf6 {[%clk 0:02:57]} 4. e4 {[%clk 0:03:00]}  Bb4 {[%clk 0:02:42]} 5. d3 {[%clk 0:02:58]}  O-O {[%clk 0:02:40]} 6. a3 {[%clk 0:02:57]}  Bxc3+ {[%clk 0:02:40]} 7. bxc3 {[%clk 0:02:57]}  d6 {[%clk 0:02:39]} 8. g3 {[%clk 0:02:57]}  Nd7 {[%clk 0:02:35]} 9. Bg2 {[%clk 0:02:51]}  f5 {[%clk 0:02:31]} 10. exf5 {[%clk 0:02:42]}  Rxf5 {[%clk 0:02:27]} 11. O-O {[%clk 0:02:41]}  Qf8 {[%clk 0:02:15]} 12. Nd2 {[%clk 0:02:30]}  Nc5 {[%clk 0:02:09]} 13. Ne4 {[%clk 0:02:28]}  Nxe4 {[%clk 0:01:59]} 14. Bxe4 {[%clk 0:02:28]}  Rf6 {[%clk 0:01:44]} 15. Bg5 {[%clk 0:02:21]}  Bh3 {[%clk 0:01:39]} 16. Bxf6 {[%clk 0:02:07]}  Bxf1 {[%clk 0:01:36]} 17. Bxg7 {[%clk 0:01:49]}  Kxg7 {[%clk 0:01:33]} 18. Qg4+ {[%clk 0:01:46]}  Kh8 {[%clk 0:01:31]} 19. Rxf1 {[%clk 0:01:46]}  Qg7 {[%clk 0:01:25]} 20. Qxg7+ {[%clk 0:01:35]}  Kxg7 {[%clk 0:01:26]} 21. Bxc6 {[%clk 0:01:25]}  bxc6 {[%clk 0:01:26]} 22. Rb1 {[%clk 0:01:26]}  Kf6 {[%clk 0:00:53]} 23. Rb7 {[%clk 0:01:23]}  c5 {[%clk 0:00:52]} 24. Rxc7 {[%clk 0:01:21]}  h5 {[%clk 0:00:51]} 25. Rd7 {[%clk 0:01:18]}  Ke6 {[%clk 0:00:50]} 26. Rh7 {[%clk 0:01:17]}  Rb8 {[%clk 0:00:51]} 27. Rb7 {[%clk 0:00:00]}  Rxb7 {[%clk 0:00:51]} 1/2-1/2


[Site "https://www.chess.com"]

[Event "Titled Tuesday Blitz July 11 Early 2023"]
[White "Leon Oquendo, Jorge"]
[Black "Lopez Del Alamo, Antonio"]
[WhiteFideId "3514803"]
[BlackFideId "2227339"]
[WhiteElo "2546"]
[BlackElo "2321"]
[Result "1-0"]
[Round "3"]
[TimeControl "180+2"]
[Date "2023.07.11"]
[WhiteClock "0:00:04"]
[BlackClock "0:00:02"]
[Board "138"]

1. d4 {[%clk 0:02:56]}  Nf6 {[%clk 0:02:59]} 2. c4 {[%clk 0:02:55]}  g6 {[%clk 0:02:54]} 3. Nc3 {[%clk 0:02:53]}  Bg7 {[%clk 0:02:54]} 4. e4 {[%clk 0:02:53]}  d6 {[%clk 0:02:51]} 5. Be2 {[%clk 0:02:53]}  O-O {[%clk 0:02:51]} 6. Be3 {[%clk 0:02:53]}  e5 {[%clk 0:02:50]} 7. d5 {[%clk 0:02:54]}  c6 {[%clk 0:02:50]} 8. g4 {[%clk 0:02:53]}  cxd5 {[%clk 0:02:49]} 9. cxd5 {[%clk 0:02:54]}  a6 {[%clk 0:02:31]} 10. a4 {[%clk 0:02:51]}  Qa5 {[%clk 0:02:14]} 11. Kf1 {[%clk 0:02:42]}  Qb4 {[%clk 0:02:03]} 12. f3 {[%clk 0:02:08]}  Qa5 {[%clk 0:01:59]} 13. h4 {[%clk 0:02:07]}  h5 {[%clk 0:01:58]} 14. g5 {[%clk 0:02:06]}  Nh7 {[%clk 0:01:57]} 15. Kg2 {[%clk 0:02:05]}  f5 {[%clk 0:01:54]} 16. Bd3 {[%clk 0:01:56]}  Nd7 {[%clk 0:01:50]} 17. Qb1 {[%clk 0:01:50]}  fxe4 {[%clk 0:01:44]} 18. fxe4 {[%clk 0:01:49]}  Qd8 {[%clk 0:01:41]} 19. b4 {[%clk 0:01:43]}  a5 {[%clk 0:01:31]} 20. Nb5 {[%clk 0:01:39]}  axb4 {[%clk 0:01:23]} 21. Nxd6 {[%clk 0:01:37]}  Nb8 {[%clk 0:01:17]} 22. Qxb4 {[%clk 0:01:20]}  Na6 {[%clk 0:01:15]} 23. Qa3 {[%clk 0:01:13]}  Qd7 {[%clk 0:01:08]} 24. Be2 {[%clk 0:01:09]}  Rf4 {[%clk 0:01:01]} 25. Bxf4 {[%clk 0:00:56]}  exf4 {[%clk 0:01:02]} 26. Nxc8 {[%clk 0:00:56]}  Rxc8 {[%clk 0:01:01]} 27. Rc1 {[%clk 0:00:52]}  Bf8 {[%clk 0:00:43]} 28. Rxc8 {[%clk 0:00:50]}  Qxc8 {[%clk 0:00:44]} 29. Qb2 {[%clk 0:00:46]}  Nc5 {[%clk 0:00:39]} 30. Qc2 {[%clk 0:00:44]}  Bd6 {[%clk 0:00:32]} 31. Bf3 {[%clk 0:00:43]}  Nf8 {[%clk 0:00:28]} 32. Nh3 {[%clk 0:00:37]}  Nfd7 {[%clk 0:00:27]} 33. Nf2 {[%clk 0:00:38]}  Ne5 {[%clk 0:00:26]} 34. Rc1 {[%clk 0:00:37]}  b6 {[%clk 0:00:23]} 35. Qd2 {[%clk 0:00:30]}  Qa6 {[%clk 0:00:19]} 36. Qc2 {[%clk 0:00:27]}  Qxa4 {[%clk 0:00:13]} 37. Qxa4 {[%clk 0:00:25]}  Nxa4 {[%clk 0:00:14]} 38. Rc8+ {[%clk 0:00:23]}  Kg7 {[%clk 0:00:14]} 39. Be2 {[%clk 0:00:22]}  Nc5 {[%clk 0:00:13]} 40. Bb5 {[%clk 0:00:20]}  f3+ {[%clk 0:00:12]} 41. Kf1 {[%clk 0:00:20]}  Ng4 {[%clk 0:00:09]} 42. Rd8 {[%clk 0:00:17]}  Bg3 {[%clk 0:00:08]} 43. Nh1 {[%clk 0:00:10]}  Be5 {[%clk 0:00:03]} 44. Nf2 {[%clk 0:00:03]}  Bg3 {[%clk 0:00:03]} 45. Nxg4 {[%clk 0:00:04]}  hxg4 {[%clk 0:00:03]} 46. d6 {[%clk 0:00:04]}  Bf4 {[%clk 0:00:03]} 47. d7 {[%clk 0:00:04]}  Bc7 {[%clk 0:00:02]} 48. Rc8 {[%clk 0:00:04]}  g3 {[%clk 0:00:02]} 49. Rxc7 {[%clk 0:00:03]}  g2+ {[%clk 0:00:02]} 50. Kf2 {[%clk 0:00:03]}  Nxe4+ {[%clk 0:00:03]} 51. Kg1 {[%clk 0:00:04]}  Ng3 {[%clk 0:00:02]} 52. d8=Q# {[%clk 0:00:04]} 1-0


[Site "https://www.chess.com"]

[Event "Titled Tuesday Blitz July 11 Early 2023"]
[White "Jaskolka, Tomasz"]
[Black "Okike, David"]
[WhiteFideId "1170791"]
[BlackFideId "8500134"]
[WhiteElo "2546"]
[BlackElo "2318"]
[Result "1-0"]
[Round "3"]
[TimeControl "180+2"]
[Date "2023.07.11"]
[WhiteClock "0:00:06"]
[BlackClock "0:00:21"]
[Board "139"]

1. d4 {[%clk 0:02:57]}  Nf6 {[%clk 0:02:59]} 2. Nc3 {[%clk 0:02:57]}  d5 {[%clk 0:02:58]} 3. Bf4 {[%clk 0:02:57]}  c5 {[%clk 0:02:57]} 4. e4 {[%clk 0:02:56]}  cxd4 {[%clk 0:02:56]} 5. Qxd4 {[%clk 0:02:54]}  Nc6 {[%clk 0:02:57]} 6. Qa4 {[%clk 0:02:46]}  d4 {[%clk 0:02:52]} 7. Nb5 {[%clk 0:02:45]}  e5 {[%clk 0:02:47]} 8. Bxe5 {[%clk 0:02:45]}  Bb4+ {[%clk 0:02:42]} 9. c3 {[%clk 0:02:43]}  dxc3 {[%clk 0:02:42]} 10. Bxc3 {[%clk 0:02:28]}  Bxc3+ {[%clk 0:02:39]} 11. bxc3 {[%clk 0:02:28]}  O-O {[%clk 0:02:40]} 12. Nf3 {[%clk 0:02:18]}  Nxe4 {[%clk 0:02:39]} 13. Be2 {[%clk 0:01:58]}  Bf5 {[%clk 0:02:25]} 14. Qb3 {[%clk 0:01:38]}  Rc8 {[%clk 0:02:20]} 15. O-O {[%clk 0:01:37]}  Na5 {[%clk 0:02:15]} 16. Qb4 {[%clk 0:01:28]}  a6 {[%clk 0:02:14]} 17. Rad1 {[%clk 0:01:04]}  Qb6 {[%clk 0:02:13]} 18. Nbd4 {[%clk 0:00:55]}  Qc5 {[%clk 0:01:56]} 19. Nxf5 {[%clk 0:00:47]}  Qxf5 {[%clk 0:01:55]} 20. Bd3 {[%clk 0:00:44]}  Rfe8 {[%clk 0:01:40]} 21. Rfe1 {[%clk 0:00:42]}  Nc4 {[%clk 0:01:13]} 22. Bxc4 {[%clk 0:00:31]}  Ng5 {[%clk 0:00:45]} 23. Nxg5 {[%clk 0:00:22]}  Qxg5 {[%clk 0:00:43]} 24. Qxb7 {[%clk 0:00:15]}  Qf6 {[%clk 0:00:43]} 25. Rxe8+ {[%clk 0:00:09]}  Rxe8 {[%clk 0:00:43]} 26. Qd7 {[%clk 0:00:07]}  Rf8 {[%clk 0:00:43]} 27. g3 {[%clk 0:00:07]}  Qxc3 {[%clk 0:00:43]} 28. Bf1 {[%clk 0:00:07]}  a5 {[%clk 0:00:42]} 29. Qa4 {[%clk 0:00:07]}  h5 {[%clk 0:00:40]} 30. Qb3 {[%clk 0:00:07]}  Qf6 {[%clk 0:00:35]} 31. Rd5 {[%clk 0:00:06]}  h4 {[%clk 0:00:35]} 32. Rxa5 {[%clk 0:00:06]}  hxg3 {[%clk 0:00:35]} 33. hxg3 {[%clk 0:00:06]}  Rd8 {[%clk 0:00:35]} 34. Rd5 {[%clk 0:00:06]}  Rc8 {[%clk 0:00:34]} 35. Qd3 {[%clk 0:00:03]}  g6 {[%clk 0:00:33]} 36. Be2 {[%clk 0:00:03]}  Rc1+ {[%clk 0:00:33]} 37. Kg2 {[%clk 0:00:04]}  Qc6 {[%clk 0:00:33]} 38. Bf3 {[%clk 0:00:03]}  Qf6 {[%clk 0:00:30]} 39. Rd8+ {[%clk 0:00:04]}  Kg7 {[%clk 0:00:30]} 40. Qd4 {[%clk 0:00:04]}  Rc2 {[%clk 0:00:29]} 41. Qxf6+ {[%clk 0:00:04]}  Kxf6 {[%clk 0:00:30]} 42. Ra8 {[%clk 0:00:05]}  Ke5 {[%clk 0:00:29]} 43. a4 {[%clk 0:00:06]}  f5 {[%clk 0:00:28]} 44. a5 {[%clk 0:00:06]}  g5 {[%clk 0:00:28]} 45. g4 {[%clk 0:00:05]}  fxg4 {[%clk 0:00:28]} 46. Bxg4 {[%clk 0:00:05]}  Kf4 {[%clk 0:00:29]} 47. Bd1 {[%clk 0:00:05]}  Rc1 {[%clk 0:00:28]} 48. a6 {[%clk 0:00:05]}  Rxd1 {[%clk 0:00:26]} 49. a7 {[%clk 0:00:06]}  Kg4 {[%clk 0:00:21]} 50. Rf8 {[%clk 0:00:06]} 1-0


[Site "https://www.chess.com"]

[Event "Titled Tuesday Blitz July 11 Early 2023"]
[White "Andreassen, Lars"]
[Black "Yurovskykh, Oleksandr"]
[WhiteFideId "1504878"]
[BlackFideId "14134020"]
[WhiteElo "2315"]
[BlackElo "2544"]
[Result "1-0"]
[Round "3"]
[TimeControl "180+2"]
[Date "2023.07.11"]
[WhiteClock "0:00:05"]
[BlackClock "0:00:00"]
[Board "140"]

1. d4 {[%clk 0:03:00]}  d5 {[%clk 0:02:53]} 2. Nf3 {[%clk 0:03:01]}  Nf6 {[%clk 0:02:52]} 3. Bg5 {[%clk 0:03:00]}  Ne4 {[%clk 0:02:51]} 4. Bh4 {[%clk 0:02:59]}  c5 {[%clk 0:02:52]} 5. c3 {[%clk 0:02:56]}  Nc6 {[%clk 0:02:52]} 6. e3 {[%clk 0:02:54]}  Qb6 {[%clk 0:02:47]} 7. Qb3 {[%clk 0:02:49]}  c4 {[%clk 0:02:43]} 8. Qxb6 {[%clk 0:02:45]}  axb6 {[%clk 0:02:44]} 9. Be2 {[%clk 0:02:43]}  b5 {[%clk 0:02:44]} 10. Nbd2 {[%clk 0:02:33]}  Nd6 {[%clk 0:01:45]} 11. O-O {[%clk 0:02:26]}  b4 {[%clk 0:01:10]} 12. cxb4 {[%clk 0:02:07]}  Nxb4 {[%clk 0:01:11]} 13. a3 {[%clk 0:02:07]}  Nc6 {[%clk 0:01:11]} 14. Rfc1 {[%clk 0:01:33]}  b5 {[%clk 0:00:22]} 15. b3 {[%clk 0:01:20]}  Na5 {[%clk 0:00:23]} 16. Ne5 {[%clk 0:01:08]}  f6 {[%clk 0:00:14]} 17. Nef3 {[%clk 0:01:04]}  Bf5 {[%clk 0:00:14]} 18. Bd1 {[%clk 0:01:00]}  e6 {[%clk 0:00:13]} 19. b4 {[%clk 0:00:53]}  Nc6 {[%clk 0:00:13]} 20. Bg3 {[%clk 0:00:47]}  Kd7 {[%clk 0:00:13]} 21. a4 {[%clk 0:00:38]}  bxa4 {[%clk 0:00:09]} 22. Bxa4 {[%clk 0:00:37]}  Kc7 {[%clk 0:00:05]} 23. b5 {[%clk 0:00:31]}  Nb8 {[%clk 0:00:06]} 24. e4 {[%clk 0:00:25]}  Bxe4 {[%clk 0:00:04]} 25. Nxe4 {[%clk 0:00:25]}  dxe4 {[%clk 0:00:05]} 26. Nd2 {[%clk 0:00:24]}  Nd7 {[%clk 0:00:05]} 27. Nxc4 {[%clk 0:00:20]}  e5 {[%clk 0:00:01]} 28. dxe5 {[%clk 0:00:19]}  Nxc4 {[%clk 0:00:01]} 29. Rxc4+ {[%clk 0:00:19]}  Kb7 {[%clk 0:00:02]} 30. e6 {[%clk 0:00:18]}  Nc5 {[%clk 0:00:02]} 31. b6 {[%clk 0:00:11]}  Be7 {[%clk 0:00:02]} 32. f3 {[%clk 0:00:09]}  Ra5 {[%clk 0:00:02]} 33. Bf2 {[%clk 0:00:09]}  Rha8 {[%clk 0:00:00]} 34. fxe4 {[%clk 0:00:05]} 1-0


[Site "https://www.chess.com"]

[Event "Titled Tuesday Blitz July 11 Early 2023"]
[White "Vifleemskaia, Svetlana"]
[Black "Bilan, Danila"]
[WhiteFideId "4129490"]
[BlackFideId "24161918"]
[WhiteElo "2310"]
[BlackElo "2539"]
[Result "1-0"]
[Round "3"]
[TimeControl "180+2"]
[Date "2023.07.11"]
[WhiteClock "0:00:06"]
[BlackClock "0:00:01"]
[Board "143"]

1. d4 {[%clk 0:02:57]}  d5 {[%clk 0:03:00]} 2. c4 {[%clk 0:02:55]}  c6 {[%clk 0:03:00]} 3. cxd5 {[%clk 0:02:54]}  cxd5 {[%clk 0:03:01]} 4. Bf4 {[%clk 0:02:54]}  Nf6 {[%clk 0:03:01]} 5. Nc3 {[%clk 0:02:54]}  a6 {[%clk 0:03:02]} 6. e3 {[%clk 0:02:53]}  Nc6 {[%clk 0:03:02]} 7. Bd3 {[%clk 0:02:46]}  Bg4 {[%clk 0:03:01]} 8. Nge2 {[%clk 0:02:45]}  e6 {[%clk 0:02:58]} 9. Rc1 {[%clk 0:02:43]}  Bd6 {[%clk 0:02:56]} 10. f3 {[%clk 0:02:43]}  Bh5 {[%clk 0:02:54]} 11. O-O {[%clk 0:02:43]}  O-O {[%clk 0:02:52]} 12. a3 {[%clk 0:02:42]}  Rc8 {[%clk 0:02:45]} 13. b4 {[%clk 0:02:41]}  e5 {[%clk 0:02:37]} 14. Bg5 {[%clk 0:02:39]}  Be7 {[%clk 0:02:24]} 15. Ng3 {[%clk 0:02:32]}  Bg6 {[%clk 0:02:13]} 16. Nf5 {[%clk 0:02:32]}  e4 {[%clk 0:01:15]} 17. fxe4 {[%clk 0:02:24]}  dxe4 {[%clk 0:01:11]} 18. Nxe7+ {[%clk 0:02:03]}  Nxe7 {[%clk 0:00:55]} 19. Be2 {[%clk 0:01:07]}  Qd6 {[%clk 0:00:27]} 20. Bxf6 {[%clk 0:00:56]}  gxf6 {[%clk 0:00:28]} 21. Qd2 {[%clk 0:00:44]}  Rc7 {[%clk 0:00:24]} 22. Na4 {[%clk 0:00:43]}  Rfc8 {[%clk 0:00:22]} 23. Rc5 {[%clk 0:00:39]}  b6 {[%clk 0:00:13]} 24. Rcc1 {[%clk 0:00:30]}  a5 {[%clk 0:00:12]} 25. b5 {[%clk 0:00:23]}  Nd5 {[%clk 0:00:11]} 26. Rxc7 {[%clk 0:00:19]}  Rxc7 {[%clk 0:00:12]} 27. Rc1 {[%clk 0:00:18]}  Qxa3 {[%clk 0:00:07]} 28. Rxc7 {[%clk 0:00:16]}  Nxc7 {[%clk 0:00:08]} 29. Nxb6 {[%clk 0:00:16]}  Qa1+ {[%clk 0:00:08]} 30. Kf2 {[%clk 0:00:15]}  Qb1 {[%clk 0:00:06]} 31. d5 {[%clk 0:00:12]}  Kg7 {[%clk 0:00:03]} 32. d6 {[%clk 0:00:12]}  Ne6 {[%clk 0:00:03]} 33. d7 {[%clk 0:00:12]}  Nd8 {[%clk 0:00:04]} 34. Nd5 {[%clk 0:00:07]}  Qb2 {[%clk 0:00:01]} 35. Qxb2 {[%clk 0:00:06]} 1-0


[Site "https://www.chess.com"]